{"text_format":"1","workbook":"xlsx","n_sheets":3,"sheets":["APPROVED DIV SPLIT","APPROVED RO COLOUR","APPROVED RO NO COLOUR"],"not_rendered":{"charts":0,"images":0,"macros":0,"external_links":0,"defined_names":0,"comments":0,"pivot_tables":0},"unopened":[],"bounds":{"document_bytes":16777216,"sheet_cells":100000,"rows_first":2000,"rows_last":500,"rows_between":2000,"halvings":0,"cell_chars":16384,"cell_head_chars":4096},"cells_cut":0,"cells_raw":0,"read":"whole","date_system":"1900"}

{"sheet":"APPROVED DIV SPLIT","index":0,"n_rows":17,"n_cols":19,"rows_kept":17,"cut":false,"hidden":false,"merged":[[1,0,1,8],[0,0,0,8],[1,10,1,18],[0,10,0,18]]}
["LEADING TO THE NATIONALS",null,null,null,null,null,null,null,null,null,"LEADING TO THE NATIONALS"]
["DIVISION SPLIT\t\t\t\t\t",null,null,null,null,null,null,null,null,null,"RACING FORMAT"]
["CLUB","TEAM NAME","TEAM #","TEAM SEED TIME","TEAM GAP"," DIVISION","WEB or DEC","BREAK OUT","Regular/Open",null,"DIVISION","NUMBER OF TEAMS","DIVISIONAL GAP","DIVISIONAL SPREAD","HANDICAP/ NON-HANDICAP ","RACE FORMAT","NUMBER OF RR","RACES PER TEAM","RACES PER DIVISION"]
["Norwest Flyball Club Inc","Norwest Thunderdogs 1",1,16.3,null,1,"DEC",{"$f":"D4-1","v":15.3},"Regular",null,1,3,null,1.6999999999999993,"HANDICAP","Best of 5",3,6,9]
["Norwest Flyball Club Inc","Norwest Thunderdogs 2",2,18,{"$f":"IF(D5=\"\",\"\",D5-D4)","v":1.6999999999999993},1,"DEC",17,"Regular",null,2,3,0.30000000000000071,1.1999999999999993,"NON-HANDICAP","Best of 5",3,6,9]
["Unleashed Flyball Club Inc","Unleashed Power",3,18,{"$f":"IF(D6=\"\",\"\",D6-D5)","v":0},1,"DEC",17,"Regular",null,3,3,0.69999999999999929,0.30000000000000071,"NON-HANDICAP","Best of 5",3,6,9]
["CDC X Factor","Canberra X-hibitionists",4,18.3,0.30000000000000071,2,"DEC",17.3,"Regular",null,4,5,1.5,1.6000000000000014,"HANDICAP","Fixed 3-heat",2,8,20]
["Norwest Flyball Club Inc","Norwest Thunderdogs 3",5,18.5,0.19999999999999929,2,"DEC",17.5,"Regular"]
["Maximum Velocity","Impulse Control",6,19.5,1,2,"DEC",18.5,"Regular"]
["Norwest Flyball Club Inc","Norwest Thunderdogs 4",7,20.2,0.69999999999999929,3,"DEC",19.2,"Regular"]
["Manly and District Kennel and Dog Training Club","Barking MAD",8,20.5,0.30000000000000071,3,"DEC",19.5,"Regular"]
["Unleashed Flyball Club Inc","Unleashed Speed",9,20.5,0,3,"DEC",19.5,"Regular"]
["Norwest Flyball Club Inc","Norwest Thunderdogs 5",10,22,1.5,4,"DEC",21,"Regular"]
["Wollongong Wonder Woofs Flyball Inc","Primal Woofers",11,22.5,0.5,4,"DEC",21.5,"Regular"]
["Southern Cross Flyball Club","Star Struck",12,23.4,0.89999999999999858,4,"DEC",22.4,"Regular"]
["Norwest Flyball Club Inc","Norwest Thunderdogs 6",13,23.5,0.10000000000000142,4,"DEC",22.5,"Regular"]
["Sydneysiders","Pawpedoes",14,23.6,0.10000000000000142,4,"DEC",22.6,"Regular"]

{"sheet":"APPROVED RO COLOUR","index":1,"n_rows":49,"n_cols":5,"rows_kept":49,"cut":false,"hidden":false,"merged":[[0,0,0,4]]}
["Leading to the Nationals Race Meeting Running Order"]
["Race no","Division","Handicap","Left","Right"]
[1,"DIV 4","Handicap","Pawpedoes","Primal Woofers"]
[2,"DIV 4","Handicap","Norwest Thunderdogs 6","Norwest Thunderdogs 5"]
[3,"DIV 1","Handicap","Unleashed Power","Norwest Thunderdogs 1"]
[4,"DIV 2","Non-Handicap","Impulse Control","Canberra X-hibitionists"]
[5,"DIV 3","Non-Handicap","Unleashed Speed","Norwest Thunderdogs 4"]
[6,"DIV 4","Handicap","Star Struck","Pawpedoes"]
[7,"DIV 4","Handicap","Primal Woofers","Norwest Thunderdogs 6"]
[8,"DIV 1","Handicap","Norwest Thunderdogs 2","Unleashed Power"]
[9,"DIV 2","Non-Handicap","Norwest Thunderdogs 3","Impulse Control"]
[10,"DIV 3","Non-Handicap","Barking MAD","Unleashed Speed"]
[11,"DIV 4","Handicap","Norwest Thunderdogs 5","Star Struck"]
[12,"DIV 4","Handicap","Norwest Thunderdogs 6","Pawpedoes"]
[13,"DIV 1","Handicap","Norwest Thunderdogs 1","Norwest Thunderdogs 2"]
[14,"DIV 2","Non-Handicap","Canberra X-hibitionists","Impulse Control"]
[15,"DIV 3","Non-Handicap","Norwest Thunderdogs 4","Unleashed Speed"]
[16,"DIV 4","Handicap","Norwest Thunderdogs 5","Pawpedoes"]
[17,"DIV 1","Handicap","Norwest Thunderdogs 1","Unleashed Power"]
[18,"DIV 4","Handicap","Primal Woofers","Star Struck"]
[19,"DIV 2","Non-Handicap","Norwest Thunderdogs 3","Canberra X-hibitionists"]
[20,"DIV 3","Non-Handicap","Norwest Thunderdogs 4","Barking MAD"]
[21,"DIV 4","Handicap","Pawpedoes","Norwest Thunderdogs 5"]
[22,"DIV 1","Handicap","Unleashed Power","Norwest Thunderdogs 2"]
[23,"DIV 4","Handicap","Star Struck","Norwest Thunderdogs 6"]
[24,"DIV 3","Non-Handicap","Unleashed Speed","Barking MAD"]
[25,"DIV 2","Non-Handicap","Impulse Control","Norwest Thunderdogs 3"]
[26,"DIV 4","Handicap","Primal Woofers","Norwest Thunderdogs 5"]
[27,"DIV 4","Handicap","Pawpedoes","Norwest Thunderdogs 6"]
[28,"DIV 1","Handicap","Norwest Thunderdogs 2","Norwest Thunderdogs 1"]
[29,"DIV 3","Non-Handicap","Barking MAD","Norwest Thunderdogs 4"]
[30,"DIV 2","Non-Handicap","Impulse Control","Canberra X-hibitionists"]
[31,"DIV 4","Handicap","Star Struck","Norwest Thunderdogs 5"]
[32,"DIV 1","Handicap","Norwest Thunderdogs 2","Unleashed Power"]
[33,"DIV 4","Handicap","Primal Woofers","Pawpedoes"]
[34,"DIV 2","Non-Handicap","Canberra X-hibitionists","Norwest Thunderdogs 3"]
[35,"DIV 3","Non-Handicap","Unleashed Speed","Norwest Thunderdogs 4"]
[36,"DIV 4","Handicap","Norwest Thunderdogs 5","Norwest Thunderdogs 6"]
[37,"DIV 4","Handicap","Star Struck","Primal Woofers"]
[38,"DIV 1","Non-Handicap","Unleashed Power","Norwest Thunderdogs 1"]
[39,"DIV 2","Non-Handicap","Norwest Thunderdogs 3","Impulse Control"]
[40,"DIV 3","Non-Handicap","Norwest Thunderdogs 4","Barking MAD"]
[41,"DIV 4","Handicap","Pawpedoes","Star Struck"]
[42,"DIV 4","Handicap","Norwest Thunderdogs 6","Primal Woofers"]
[43,"DIV 1","Handicap","Norwest Thunderdogs 1","Norwest Thunderdogs 2"]
[44,"DIV 2","Non-Handicap","Canberra X-hibitionists","Norwest Thunderdogs 3"]
[45,"DIV 3","Non-Handicap","Barking MAD","Unleashed Speed"]
[46,"DIV 4","Handicap","Norwest Thunderdogs 6","Star Struck"]
[47,"DIV 4","Handicap","Norwest Thunderdogs 5","Primal Woofers"]

{"sheet":"APPROVED RO NO COLOUR","index":2,"n_rows":49,"n_cols":5,"rows_kept":49,"cut":false,"hidden":false,"merged":[[0,0,0,4]]}
["Leading to the Nationals Race Meeting Running Order"]
["Race no","Division","Handicap","Left","Right"]
[1,"DIV 4","Handicap","Pawpedoes","Primal Woofers"]
[2,"DIV 4","Handicap","Norwest Thunderdogs 6","Norwest Thunderdogs 5"]
[3,"DIV 1","Handicap","Unleashed Power","Norwest Thunderdogs 1"]
[4,"DIV 2","Non-Handicap","Impulse Control","Canberra X-hibitionists"]
[5,"DIV 3","Non-Handicap","Unleashed Speed","Norwest Thunderdogs 4"]
[6,"DIV 4","Handicap","Star Struck","Pawpedoes"]
[7,"DIV 4","Handicap","Primal Woofers","Norwest Thunderdogs 6"]
[8,"DIV 1","Handicap","Norwest Thunderdogs 2","Unleashed Power"]
[9,"DIV 2","Non-Handicap","Norwest Thunderdogs 3","Impulse Control"]
[10,"DIV 3","Non-Handicap","Barking MAD","Unleashed Speed"]
[11,"DIV 4","Handicap","Norwest Thunderdogs 5","Star Struck"]
[12,"DIV 4","Handicap","Norwest Thunderdogs 6","Pawpedoes"]
[13,"DIV 1","Handicap","Norwest Thunderdogs 1","Norwest Thunderdogs 2"]
[14,"DIV 2","Non-Handicap","Canberra X-hibitionists","Impulse Control"]
[15,"DIV 3","Non-Handicap","Norwest Thunderdogs 4","Unleashed Speed"]
[16,"DIV 4","Handicap","Norwest Thunderdogs 5","Pawpedoes"]
[17,"DIV 1","Handicap","Norwest Thunderdogs 1","Unleashed Power"]
[18,"DIV 4","Handicap","Primal Woofers","Star Struck"]
[19,"DIV 2","Non-Handicap","Norwest Thunderdogs 3","Canberra X-hibitionists"]
[20,"DIV 3","Non-Handicap","Norwest Thunderdogs 4","Barking MAD"]
[21,"DIV 4","Handicap","Pawpedoes","Norwest Thunderdogs 5"]
[22,"DIV 1","Handicap","Unleashed Power","Norwest Thunderdogs 2"]
[23,"DIV 4","Handicap","Star Struck","Norwest Thunderdogs 6"]
[24,"DIV 3","Non-Handicap","Unleashed Speed","Barking MAD"]
[25,"DIV 2","Non-Handicap","Impulse Control","Norwest Thunderdogs 3"]
[26,"DIV 4","Handicap","Primal Woofers","Norwest Thunderdogs 5"]
[27,"DIV 4","Handicap","Pawpedoes","Norwest Thunderdogs 6"]
[28,"DIV 1","Handicap","Norwest Thunderdogs 2","Norwest Thunderdogs 1"]
[29,"DIV 3","Non-Handicap","Barking MAD","Norwest Thunderdogs 4"]
[30,"DIV 2","Non-Handicap","Impulse Control","Canberra X-hibitionists"]
[31,"DIV 4","Handicap","Star Struck","Norwest Thunderdogs 5"]
[32,"DIV 1","Handicap","Norwest Thunderdogs 2","Unleashed Power"]
[33,"DIV 4","Handicap","Primal Woofers","Pawpedoes"]
[34,"DIV 2","Non-Handicap","Canberra X-hibitionists","Norwest Thunderdogs 3"]
[35,"DIV 3","Non-Handicap","Unleashed Speed","Norwest Thunderdogs 4"]
[36,"DIV 4","Handicap","Norwest Thunderdogs 5","Norwest Thunderdogs 6"]
[37,"DIV 4","Handicap","Star Struck","Primal Woofers"]
[38,"DIV 1","Non-Handicap","Unleashed Power","Norwest Thunderdogs 1"]
[39,"DIV 2","Non-Handicap","Norwest Thunderdogs 3","Impulse Control"]
[40,"DIV 3","Non-Handicap","Norwest Thunderdogs 4","Barking MAD"]
[41,"DIV 4","Handicap","Pawpedoes","Star Struck"]
[42,"DIV 4","Handicap","Norwest Thunderdogs 6","Primal Woofers"]
[43,"DIV 1","Handicap","Norwest Thunderdogs 1","Norwest Thunderdogs 2"]
[44,"DIV 2","Non-Handicap","Canberra X-hibitionists","Norwest Thunderdogs 3"]
[45,"DIV 3","Non-Handicap","Barking MAD","Unleashed Speed"]
[46,"DIV 4","Handicap","Norwest Thunderdogs 6","Star Struck"]
[47,"DIV 4","Handicap","Norwest Thunderdogs 5","Primal Woofers"]